[Event "Late-Titled-Tuesday-Blitz-April-02-2024"]
[Site "Chess.com"]
[Date "2024.04.02"]
[Round "3"]
[White "DreamsAreFake"]
[Black "Grischuk"]
[Result "0-1"]
[WhiteElo "2744"]
[BlackElo "3076"]
[TimeControl "180+1"]
[EndTime "14:27:47 PDT"]
[Termination "Grischuk won by resignation"]

1. Nf3 {[%clk 0:03:00.9]} 1... d5 {[%clk 0:02:58.9]} 2. g3 {[%clk 0:03:01.5]}
2... c6 {[%clk 0:02:57.8]} 3. Bg2 {[%clk 0:03:02.1]} 3... Bg4 {[%clk 0:02:58]}
4. O-O {[%clk 0:03:02.6]} 4... Nf6 {[%clk 0:02:57.7]} 5. d3 {[%clk 0:03:02.9]}
5... e6 {[%clk 0:02:50.7]} 6. h3 {[%clk 0:03:03.6]} 6... Bh5 {[%clk 0:02:50.6]}
7. Nbd2 {[%clk 0:03:04.3]} 7... Be7 {[%clk 0:02:49.6]} 8. e4 {[%clk 0:03:05]}
8... O-O {[%clk 0:02:49.8]} 9. Qe2 {[%clk 0:03:05.5]} 9... a5 {[%clk 0:02:48.9]}
10. c3 {[%clk 0:02:59.9]} 10... a4 {[%clk 0:02:46.4]} 11. Rd1 {[%clk 0:03:00.3]}
11... Na6 {[%clk 0:02:38.4]} 12. Nf1 {[%clk 0:02:59.9]} 12... Qa5 {[%clk
0:02:26.2]} 13. g4 {[%clk 0:02:51.1]} 13... Bg6 {[%clk 0:02:26]} 14. Ne5 {[%clk
0:02:45]} 14... Rfd8 {[%clk 0:02:14.2]} 15. Ng3 {[%clk 0:02:41.1]} 15... dxe4
{[%clk 0:02:05.1]} 16. Nxg6 {[%clk 0:02:39.7]} 16... hxg6 {[%clk 0:02:06]} 17.
Nxe4 {[%clk 0:02:37.6]} 17... Nxe4 {[%clk 0:02:04.9]} 18. Bxe4 {[%clk
0:02:38.1]} 18... Qb5 {[%clk 0:01:47.1]} 19. Bf3 {[%clk 0:02:24.9]} 19... Bg5
{[%clk 0:01:33.2]} 20. Be3 {[%clk 0:02:19.2]} 20... Bxe3 {[%clk 0:01:29.9]} 21.
fxe3 {[%clk 0:02:20.1]} 21... Nc7 {[%clk 0:01:12]} 22. d4 {[%clk 0:02:18.3]}
22... Qg5 {[%clk 0:01:12]} 23. a3 {[%clk 0:02:04.3]} 23... Nd5 {[%clk
0:01:08.5]} 24. Re1 {[%clk 0:02:00.8]} 24... e5 {[%clk 0:01:05.1]} 25. Bxd5
{[%clk 0:01:48.5]} 25... Rxd5 {[%clk 0:01:04.4]} 26. Qg2 {[%clk 0:01:45.4]}
26... Re8 {[%clk 0:01:00.5]} 27. Rad1 {[%clk 0:01:40.8]} 27... Rd7 {[%clk
0:00:58.6]} 28. d5 {[%clk 0:01:36.7]} 28... cxd5 {[%clk 0:00:52.9]} 29. Rxd5
{[%clk 0:01:37.6]} 29... Rxd5 {[%clk 0:00:48.1]} 30. Qxd5 {[%clk 0:01:37.6]}
30... Rd8 {[%clk 0:00:44.6]} 31. Qf3 {[%clk 0:01:12.4]} 31... f5 {[%clk
0:00:37.2]} 32. Kg2 {[%clk 0:00:59]} 32... Rd2+ {[%clk 0:00:28]} 33. Re2 {[%clk
0:00:59.2]} 33... e4 {[%clk 0:00:27.8]} 34. Qf1 {[%clk 0:00:52.3]} 34... Rd3
{[%clk 0:00:26.5]} 35. Qf4 {[%clk 0:00:41.1]} 35... Qxf4 {[%clk 0:00:26]} 36.
exf4 {[%clk 0:00:42]} 36... Kf7 {[%clk 0:00:23.3]} 37. h4 {[%clk 0:00:38.9]}
37... Ke6 {[%clk 0:00:21]} 38. h5 {[%clk 0:00:28.3]} 38... gxh5 {[%clk
0:00:21.9]} 39. gxh5 {[%clk 0:00:29]} 39... Rf3 {[%clk 0:00:22]} 40. Rd2 {[%clk
0:00:28.2]} 40... Rxf4 {[%clk 0:00:21.4]} 41. Rd4 {[%clk 0:00:28.8]} 41... Rg4+
{[%clk 0:00:19]} 42. Kf2 {[%clk 0:00:28.8]} 42... Ke5 {[%clk 0:00:15.1]} 43. Rb4
{[%clk 0:00:25.8]} 43... Kf4 {[%clk 0:00:13.6]} 44. Rxb7 {[%clk 0:00:26.2]}
44... e3+ {[%clk 0:00:12.8]} 45. Ke2 {[%clk 0:00:26.7]} 45... Rg2+ {[%clk
0:00:12.8]} 46. Kd3 {[%clk 0:00:25.9]} 46... Rd2+ {[%clk 0:00:12.8]} 47. Kc4
{[%clk 0:00:26.3]} 47... e2 {[%clk 0:00:13.4]} 48. Re7 {[%clk 0:00:26.5]} 48...
Kf3 {[%clk 0:00:13.4]} 49. b4 {[%clk 0:00:23.1]} 49... axb3 {[%clk 0:00:14.3]}
50. Kxb3 {[%clk 0:00:22.7]} 50... Rd1 {[%clk 0:00:14.1]} 0-1

[Event "Late-Titled-Tuesday-Blitz-April-02-2024"]
[Site "Chess.com"]
[Date "2024.04.02"]
[Round "3"]
[White "keepitcoming"]
[Black "maracayo"]
[Result "0-1"]
[WhiteElo "2225"]
[BlackElo "2405"]
[TimeControl "180+1"]
[EndTime "14:27:50 PDT"]
[Termination "maracayo won on time"]

1. d4 {[%clk 0:03:00.9]} 1... Nf6 {[%clk 0:02:58.8]} 2. c4 {[%clk 0:02:54.3]}
2... d6 {[%clk 0:02:58]} 3. Nc3 {[%clk 0:02:54]} 3... e5 {[%clk 0:02:56.9]} 4.
e3 {[%clk 0:02:48.2]} 4... Be7 {[%clk 0:02:56]} 5. Nf3 {[%clk 0:02:47.2]} 5...
Nbd7 {[%clk 0:02:55.2]} 6. g3 {[%clk 0:02:46.7]} 6... O-O {[%clk 0:02:55]} 7.
Bg2 {[%clk 0:02:47.1]} 7... c6 {[%clk 0:02:54.9]} 8. O-O {[%clk 0:02:46.2]} 8...
e4 {[%clk 0:02:54.7]} 9. Nd2 {[%clk 0:02:46.7]} 9... d5 {[%clk 0:02:54.4]} 10.
cxd5 {[%clk 0:02:47.2]} 10... cxd5 {[%clk 0:02:54.9]} 11. f3 {[%clk 0:02:47.8]}
11... exf3 {[%clk 0:02:50.2]} 12. Nxf3 {[%clk 0:02:40.7]} 12... Bb4 {[%clk
0:02:45.4]} 13. Qd3 {[%clk 0:02:38.7]} 13... Re8 {[%clk 0:02:40.9]} 14. a3
{[%clk 0:02:35]} 14... Bxc3 {[%clk 0:02:23.6]} 15. bxc3 {[%clk 0:02:35.9]} 15...
b6 {[%clk 0:02:07]} 16. a4 {[%clk 0:02:23.5]} 16... a5 {[%clk 0:02:00.7]} 17.
Re1 {[%clk 0:02:17.4]} 17... Ba6 {[%clk 0:01:59.1]} 18. Qc2 {[%clk 0:02:16.7]}
18... Rc8 {[%clk 0:01:58.2]} 19. Ba3 {[%clk 0:02:14.2]} 19... Ne4 {[%clk
0:01:40.6]} 20. Bb2 {[%clk 0:02:14.1]} 20... h6 {[%clk 0:01:16.4]} 21. Nd2
{[%clk 0:02:05.9]} 21... Ndf6 {[%clk 0:01:14]} 22. Rac1 {[%clk 0:01:58.6]} 22...
Qd7 {[%clk 0:01:11.4]} 23. Rf1 {[%clk 0:01:25.3]} 23... Bxf1 {[%clk 0:01:05.6]}
24. Rxf1 {[%clk 0:01:22.3]} 24... Nxd2 {[%clk 0:01:01.8]} 25. Qxd2 {[%clk
0:01:23.2]} 25... Ne4 {[%clk 0:01:01.2]} 26. Qd3 {[%clk 0:01:13.8]} 26... Qxa4
{[%clk 0:00:57]} 27. Rf4 {[%clk 0:01:09.5]} 27... Qc4 {[%clk 0:00:51.6]} 28. Qb1
{[%clk 0:01:00.3]} 28... Nxc3 {[%clk 0:00:47.3]} 29. Bxc3 {[%clk 0:00:59.3]}
29... Qxc3 {[%clk 0:00:46.6]} 30. Bxd5 {[%clk 0:00:55.3]} 30... Qc1+ {[%clk
0:00:36.4]} 31. Qxc1 {[%clk 0:00:51.9]} 31... Rxc1+ {[%clk 0:00:37.3]} 32. Kg2
{[%clk 0:00:51.6]} 32... Re7 {[%clk 0:00:34.5]} 33. Rf2 {[%clk 0:00:47.5]} 33...
Rb1 {[%clk 0:00:30.5]} 34. Ba2 {[%clk 0:00:44.9]} 34... Rb4 {[%clk 0:00:28.8]}
35. Kf3 {[%clk 0:00:45.1]} 35... a4 {[%clk 0:00:27.5]} 36. Bd5 {[%clk
0:00:40.5]} 36... a3 {[%clk 0:00:27.3]} 37. Rc2 {[%clk 0:00:34.7]} 37... g6
{[%clk 0:00:24.9]} 38. Rc8+ {[%clk 0:00:32.4]} 38... Kg7 {[%clk 0:00:24.9]} 39.
Ra8 {[%clk 0:00:33.3]} 39... Rb5 {[%clk 0:00:25.2]} 40. Be4 {[%clk 0:00:28.3]}
40... Ra5 {[%clk 0:00:25.3]} 41. Rb8 {[%clk 0:00:28]} 41... a2 {[%clk
0:00:24.7]} 42. Rxb6 {[%clk 0:00:28.2]} 42... a1=Q {[%clk 0:00:24.8]} 43. Rb1
{[%clk 0:00:28.2]} 43... Qc3 {[%clk 0:00:22.6]} 44. Rd1 {[%clk 0:00:26.3]} 44...
Rxe4 {[%clk 0:00:21.8]} 45. Rd3 {[%clk 0:00:27.2]} 45... Qxd3 {[%clk 0:00:21.4]}
0-1

[Event "Late-Titled-Tuesday-Blitz-April-02-2024"]
[Site "Chess.com"]
[Date "2024.04.02"]
[Round "3"]
[White "LeninGuerra"]
[Black "CatLoverPL"]
[Result "0-1"]
[WhiteElo "2712"]
[BlackElo "2509"]
[TimeControl "180+1"]
[EndTime "14:27:51 PDT"]
[Termination "CatLoverPL won by checkmate"]

1. e4 {[%clk 0:03:00.9]} 1... g6 {[%clk 0:02:59.6]} 2. d4 {[%clk 0:03:00.3]}
2... Bg7 {[%clk 0:02:57.3]} 3. Nf3 {[%clk 0:03:00.3]} 3... c5 {[%clk 0:02:57.6]}
4. dxc5 {[%clk 0:02:58]} 4... Qa5+ {[%clk 0:02:57.3]} 5. c3 {[%clk 0:02:58.2]}
5... Qxc5 {[%clk 0:02:57.4]} 6. Bd3 {[%clk 0:02:58.9]} 6... Nf6 {[%clk
0:02:57.4]} 7. O-O {[%clk 0:02:59.4]} 7... O-O {[%clk 0:02:57.1]} 8. Be3 {[%clk
0:02:58.4]} 8... Qa5 {[%clk 0:02:55.3]} 9. Na3 {[%clk 0:02:58.4]} 9... Nc6
{[%clk 0:02:55.3]} 10. Qd2 {[%clk 0:02:54.3]} 10... d6 {[%clk 0:02:54.7]} 11. h3
{[%clk 0:02:53.8]} 11... Be6 {[%clk 0:02:48.6]} 12. Bh6 {[%clk 0:02:48.5]} 12...
Rfd8 {[%clk 0:02:41.3]} 13. Nc2 {[%clk 0:02:48.2]} 13... d5 {[%clk 0:02:40.2]}
14. e5 {[%clk 0:02:37.7]} 14... Nd7 {[%clk 0:02:31.3]} 15. Bxg7 {[%clk
0:02:35.6]} 15... Kxg7 {[%clk 0:02:31.3]} 16. Rfe1 {[%clk 0:02:33]} 16... Qc7
{[%clk 0:02:29.4]} 17. Qf4 {[%clk 0:02:27.7]} 17... Nc5 {[%clk 0:02:28.3]} 18.
Bf1 {[%clk 0:02:24.4]} 18... Bf5 {[%clk 0:02:22.1]} 19. Ncd4 {[%clk 0:02:23]}
19... Be4 {[%clk 0:02:17.9]} 20. Ng5 {[%clk 0:01:39.2]} 20... Nxe5 {[%clk
0:01:52.2]} 21. Qg3 {[%clk 0:01:06.9]} 21... h6 {[%clk 0:01:48.2]} 22. f4 {[%clk
0:00:57.3]} 22... hxg5 {[%clk 0:01:46.7]} 23. fxe5 {[%clk 0:00:57.2]} 23... Qb6
{[%clk 0:01:36.6]} 24. Qxg5 {[%clk 0:00:43]} 24... Ne6 {[%clk 0:01:33.8]} 25.
Qd2 {[%clk 0:00:41.4]} 25... Nxd4 {[%clk 0:01:32.9]} 26. cxd4 {[%clk 0:00:42.3]}
26... Rac8 {[%clk 0:01:31.6]} 27. Rac1 {[%clk 0:00:39.2]} 27... Qe6 {[%clk
0:01:16.1]} 28. Rc3 {[%clk 0:00:33.6]} 28... Rc6 {[%clk 0:01:12.1]} 29. Rec1
{[%clk 0:00:32.9]} 29... Rdc8 {[%clk 0:01:11.7]} 30. Qg5 {[%clk 0:00:30]} 30...
Rxc3 {[%clk 0:01:10.6]} 31. bxc3 {[%clk 0:00:24.7]} 31... Qd7 {[%clk 0:01:07]}
32. Be2 {[%clk 0:00:20.1]} 32... Rc7 {[%clk 0:01:04.7]} 33. h4 {[%clk 0:00:17]}
33... Qf5 {[%clk 0:01:00.7]} 34. Qxf5 {[%clk 0:00:16.1]} 34... Bxf5 {[%clk
0:00:59.8]} 35. Kf2 {[%clk 0:00:15.9]} 35... Rc6 {[%clk 0:00:56]} 36. g4 {[%clk
0:00:15.9]} 36... Be4 {[%clk 0:00:55.4]} 37. Ke3 {[%clk 0:00:14.3]} 37... Rb6
{[%clk 0:00:55.3]} 38. c4 {[%clk 0:00:13.8]} 38... e6 {[%clk 0:00:52.1]} 39. c5
{[%clk 0:00:13.2]} 39... Rb2 {[%clk 0:00:51.7]} 40. a4 {[%clk 0:00:13.7]} 40...
Rb3+ {[%clk 0:00:49.7]} 41. Kf2 {[%clk 0:00:13]} 41... Ra3 {[%clk 0:00:48.3]}
42. Bb5 {[%clk 0:00:12.8]} 42... Rh3 {[%clk 0:00:45.2]} 43. c6 {[%clk
0:00:10.4]} 43... bxc6 {[%clk 0:00:45.1]} 44. Rxc6 {[%clk 0:00:10.9]} 44... Rxh4
{[%clk 0:00:45.3]} 45. Rc7 {[%clk 0:00:11.3]} 45... Rxg4 {[%clk 0:00:44.4]} 46.
Rxa7 {[%clk 0:00:10.8]} 46... Bf5 {[%clk 0:00:40.5]} 47. a5 {[%clk 0:00:08.8]}
47... Rxd4 {[%clk 0:00:40.5]} 48. Be8 {[%clk 0:00:09.5]} 48... Rd2+ {[%clk
0:00:30.4]} 49. Ke3 {[%clk 0:00:09.1]} 49... Rd3+ {[%clk 0:00:29.8]} 50. Kf4
{[%clk 0:00:09.4]} 50... Kh6 {[%clk 0:00:27.2]} 51. Rxf7 {[%clk 0:00:04.1]}
51... g5# {[%clk 0:00:27]} 0-1

[Event "Late-Titled-Tuesday-Blitz-April-02-2024"]
[Site "Chess.com"]
[Date "2024.04.02"]
[Round "3"]
[White "BogdanDeac"]
[Black "Evgeny81"]
[Result "1-0"]
[WhiteElo "3107"]
[BlackElo "2759"]
[TimeControl "180+1"]
[EndTime "14:27:54 PDT"]
[Termination "BogdanDeac won on time"]

1. e4 {[%clk 0:03:00.9]} 1... c5 {[%clk 0:02:56.1]} 2. Nf3 {[%clk 0:03:00.4]}
2... d6 {[%clk 0:02:55.7]} 3. Bb5+ {[%clk 0:03:00.1]} 3... Bd7 {[%clk
0:02:55.6]} 4. Bxd7+ {[%clk 0:02:54.8]} 4... Qxd7 {[%clk 0:02:55.9]} 5. O-O
{[%clk 0:02:54.8]} 5... g6 {[%clk 0:02:56.4]} 6. c3 {[%clk 0:02:50.7]} 6... Nf6
{[%clk 0:02:56.2]} 7. Qe2 {[%clk 0:02:48.2]} 7... Bg7 {[%clk 0:02:55.8]} 8. d4
{[%clk 0:02:47.8]} 8... cxd4 {[%clk 0:02:56.7]} 9. cxd4 {[%clk 0:02:48.1]} 9...
O-O {[%clk 0:02:57]} 10. Nc3 {[%clk 0:02:47]} 10... Nc6 {[%clk 0:02:48.5]} 11.
Rd1 {[%clk 0:02:46.2]} 11... Rfe8 {[%clk 0:02:44.7]} 12. h3 {[%clk 0:02:43.8]}
12... e6 {[%clk 0:02:40.2]} 13. Bf4 {[%clk 0:02:30.6]} 13... a6 {[%clk
0:02:37.4]} 14. Qd3 {[%clk 0:02:02.2]} 14... Rad8 {[%clk 0:02:22.7]} 15. Rac1
{[%clk 0:01:50.4]} 15... e5 {[%clk 0:02:19.1]} 16. dxe5 {[%clk 0:01:40.8]} 16...
dxe5 {[%clk 0:02:08.7]} 17. Qxd7 {[%clk 0:01:38.9]} 17... Rxd7 {[%clk
0:02:07.2]} 18. Rxd7 {[%clk 0:01:14.1]} 18... Nxd7 {[%clk 0:02:08.1]} 19. Be3
{[%clk 0:01:14.4]} 19... f5 {[%clk 0:02:03.3]} 20. Nd5 {[%clk 0:01:05.1]} 20...
Nf6 {[%clk 0:01:46.9]} 21. Nxf6+ {[%clk 0:00:58.4]} 21... Bxf6 {[%clk 0:01:46]}
22. Kf1 {[%clk 0:00:59]} 22... Rd8 {[%clk 0:01:33.3]} 23. Ke2 {[%clk 0:00:50.4]}
23... Kf7 {[%clk 0:01:19.2]} 24. Nd2 {[%clk 0:00:42.7]} 24... f4 {[%clk
0:00:56.3]} 25. Bb6 {[%clk 0:00:35.5]} 25... Rd7 {[%clk 0:00:53.6]} 26. a3
{[%clk 0:00:27.9]} 26... Bd8 {[%clk 0:00:41.7]} 27. Bc5 {[%clk 0:00:20.2]} 27...
Ke6 {[%clk 0:00:37.5]} 28. Nb3 {[%clk 0:00:16.3]} 28... Kf7 {[%clk 0:00:21.4]}
29. f3 {[%clk 0:00:15.4]} 29... g5 {[%clk 0:00:21]} 30. Nd2 {[%clk 0:00:12.6]}
30... h5 {[%clk 0:00:20]} 31. b4 {[%clk 0:00:12.6]} 31... Ke6 {[%clk 0:00:17.6]}
32. Nb3 {[%clk 0:00:10.1]} 32... Kf7 {[%clk 0:00:17.2]} 33. a4 {[%clk
0:00:09.2]} 33... Be7 {[%clk 0:00:14.2]} 34. b5 {[%clk 0:00:05.9]} 34... axb5
{[%clk 0:00:15.1]} 35. axb5 {[%clk 0:00:06.2]} 35... Nd8 {[%clk 0:00:14.4]} 36.
Bf2 {[%clk 0:00:04.6]} 36... Ne6 {[%clk 0:00:12.1]} 37. Na5 {[%clk 0:00:05]}
37... Bb4 {[%clk 0:00:07]} 38. Nc4 {[%clk 0:00:04.8]} 38... Kf6 {[%clk
0:00:07.4]} 39. Rc2 {[%clk 0:00:04.9]} 39... Rd8 {[%clk 0:00:04.4]} 40. Nb6
{[%clk 0:00:04.9]} 40... Rd6 {[%clk 0:00:03.9]} 41. Nd5+ {[%clk 0:00:05.1]}
41... Rxd5 {[%clk 0:00:01.9]} 42. exd5 {[%clk 0:00:05.5]} 42... Nf8 {[%clk
0:00:01.7]} 43. Kd3 {[%clk 0:00:05.6]} 1-0

[Event "Late-Titled-Tuesday-Blitz-April-02-2024"]
[Site "Chess.com"]
[Date "2024.04.02"]
[Round "3"]
[White "Yushko_Olga"]
[Black "Supelyel"]
[Result "0-1"]
[WhiteElo "2246"]
[BlackElo "2414"]
[TimeControl "180+1"]
[EndTime "14:27:54 PDT"]
[Termination "Supelyel won by resignation"]

1. d4 {[%clk 0:03:00]} 1... d6 {[%clk 0:02:51.2]} 2. c4 {[%clk 0:02:59.7]} 2...
Nf6 {[%clk 0:02:48.7]} 3. Nf3 {[%clk 0:02:59.2]} 3... Nbd7 {[%clk 0:02:45.8]} 4.
Bg5 {[%clk 0:02:57.6]} 4... e5 {[%clk 0:02:31.6]} 5. e3 {[%clk 0:02:50.5]} 5...
Be7 {[%clk 0:02:31.5]} 6. Be2 {[%clk 0:02:48.4]} 6... c6 {[%clk 0:02:31]} 7. O-O
{[%clk 0:02:48.3]} 7... O-O {[%clk 0:02:30.4]} 8. Nc3 {[%clk 0:02:48.2]} 8...
Re8 {[%clk 0:02:30.8]} 9. Qc2 {[%clk 0:02:47.4]} 9... a6 {[%clk 0:02:30.6]} 10.
Rfd1 {[%clk 0:02:46.9]} 10... Qc7 {[%clk 0:02:30.6]} 11. b4 {[%clk 0:02:40.5]}
11... b5 {[%clk 0:02:20.7]} 12. dxe5 {[%clk 0:02:38.3]} 12... dxe5 {[%clk
0:02:10.9]} 13. c5 {[%clk 0:02:37.1]} 13... a5 {[%clk 0:02:03.7]} 14. a3 {[%clk
0:02:36.6]} 14... a4 {[%clk 0:01:57.7]} 15. Rd2 {[%clk 0:02:32.8]} 15... Nf8
{[%clk 0:01:54.5]} 16. Bxf6 {[%clk 0:02:29]} 16... Bxf6 {[%clk 0:01:54.5]} 17.
Ne4 {[%clk 0:02:29.1]} 17... Be6 {[%clk 0:01:43.7]} 18. Nxf6+ {[%clk 0:02:24.5]}
18... gxf6 {[%clk 0:01:43.5]} 19. Rd6 {[%clk 0:02:23]} 19... Rad8 {[%clk
0:01:35.5]} 20. Rad1 {[%clk 0:02:22.2]} 20... Bb3 {[%clk 0:01:33.7]} 21. Qf5
{[%clk 0:02:13.1]} 21... Bxd1 {[%clk 0:01:33.5]} 22. Bxd1 {[%clk 0:01:52.3]}
22... Rxd6 {[%clk 0:01:31.5]} 23. cxd6 {[%clk 0:01:53.2]} 23... Qxd6 {[%clk
0:01:32.3]} 24. Be2 {[%clk 0:01:53.4]} 24... Qe6 {[%clk 0:01:25.9]} 25. Qe4
{[%clk 0:01:51.3]} 25... Ng6 {[%clk 0:01:16.9]} 26. h4 {[%clk 0:01:48.4]} 26...
f5 {[%clk 0:01:09.2]} 27. Qc2 {[%clk 0:01:41.8]} 27... Ne7 {[%clk 0:00:49]} 28.
Ng5 {[%clk 0:01:08.7]} 28... Qb3 {[%clk 0:00:35.7]} 29. Qc5 {[%clk 0:00:54.1]}
29... h6 {[%clk 0:00:18.1]} 30. Nf3 {[%clk 0:00:47.5]} 30... Qd5 {[%clk
0:00:18.4]} 31. Qc2 {[%clk 0:00:45.6]} 31... e4 {[%clk 0:00:17.6]} 32. Nd4
{[%clk 0:00:45.1]} 32... Rc8 {[%clk 0:00:18.4]} 33. Bf1 {[%clk 0:00:36.6]} 33...
c5 {[%clk 0:00:18.8]} 34. bxc5 {[%clk 0:00:34]} 34... Rxc5 {[%clk 0:00:19.7]}
35. Qe2 {[%clk 0:00:29.4]} 35... Nc6 {[%clk 0:00:18.4]} 36. Qh5 {[%clk
0:00:19.8]} 36... Nxd4 {[%clk 0:00:17.4]} 37. exd4 {[%clk 0:00:20.7]} 37... Qxd4
{[%clk 0:00:17.9]} 38. g4 {[%clk 0:00:15]} 38... Rc2 {[%clk 0:00:17.3]} 39. Qxf5
{[%clk 0:00:13.6]} 39... Rb2 {[%clk 0:00:13.9]} 40. Bxb5 {[%clk 0:00:12.2]}
40... e3 {[%clk 0:00:14]} 41. Be8 {[%clk 0:00:06.2]} 41... exf2+ {[%clk
0:00:14]} 42. Kf1 {[%clk 0:00:04.1]} 42... Qd1+ {[%clk 0:00:14.2]} 43. Kg2
{[%clk 0:00:03.9]} 43... f1=Q+ {[%clk 0:00:15.1]} 44. Kg3 {[%clk 0:00:03.9]}
44... Qxf5 {[%clk 0:00:15.1]} 0-1

[Event "Late-Titled-Tuesday-Blitz-April-02-2024"]
[Site "Chess.com"]
[Date "2024.04.02"]
[Round "3"]
[White "HipsterChess22"]
[Black "wild3000"]
[Result "0-1"]
[WhiteElo "2176"]
[BlackElo "2380"]
[TimeControl "180+1"]
[EndTime "14:27:54 PDT"]
[Termination "wild3000 won on time"]

1. d4 {[%clk 0:02:59.3]} 1... Nf6 {[%clk 0:01:50]} 2. Nc3 {[%clk 0:02:56.8]}
2... d5 {[%clk 0:01:50.2]} 3. Bf4 {[%clk 0:02:55.6]} 3... c6 {[%clk 0:01:50.3]}
4. e3 {[%clk 0:02:53.6]} 4... Qa5 {[%clk 0:01:49.7]} 5. Qd2 {[%clk 0:02:39.7]}
5... Nbd7 {[%clk 0:01:49.6]} 6. Nf3 {[%clk 0:02:38.7]} 6... b5 {[%clk
0:01:49.8]} 7. Bd3 {[%clk 0:02:33.5]} 7... b4 {[%clk 0:01:49.8]} 8. Ne2 {[%clk
0:02:33.2]} 8... e6 {[%clk 0:01:49.3]} 9. h3 {[%clk 0:02:28.5]} 9... c5 {[%clk
0:01:49.1]} 10. dxc5 {[%clk 0:02:26.7]} 10... Nxc5 {[%clk 0:01:49.2]} 11. O-O
{[%clk 0:02:22.3]} 11... Nfe4 {[%clk 0:01:48.3]} 12. Qd1 {[%clk 0:01:58.7]}
12... Be7 {[%clk 0:01:43.2]} 13. Ng3 {[%clk 0:01:44.7]} 13... O-O {[%clk
0:01:35.8]} 14. a3 {[%clk 0:01:39.4]} 14... bxa3 {[%clk 0:01:34.6]} 15. Rxa3
{[%clk 0:01:37.9]} 15... Qb6 {[%clk 0:01:34.7]} 16. Ra2 {[%clk 0:01:35.4]} 16...
a5 {[%clk 0:01:32.2]} 17. Nd2 {[%clk 0:01:31.1]} 17... Nxd2 {[%clk 0:01:19.6]}
18. Qxd2 {[%clk 0:01:29.7]} 18... Nxd3 {[%clk 0:01:12]} 19. Qxd3 {[%clk
0:01:23.8]} 19... Ba6 {[%clk 0:01:09.4]} 20. Qd4 {[%clk 0:01:00.4]} 20... Qxd4
{[%clk 0:01:07.8]} 21. exd4 {[%clk 0:01:00.5]} 21... Bxf1 {[%clk 0:01:07.9]} 22.
Nxf1 {[%clk 0:01:00.4]} 22... a4 {[%clk 0:01:04.7]} 23. c3 {[%clk 0:00:51.7]}
23... Rfc8 {[%clk 0:01:04.3]} 24. Bd2 {[%clk 0:00:49.9]} 24... Kf8 {[%clk
0:00:56.7]} 25. g3 {[%clk 0:00:49.8]} 25... f6 {[%clk 0:00:56.8]} 26. f4 {[%clk
0:00:47.9]} 26... Bd6 {[%clk 0:00:52.7]} 27. Kg2 {[%clk 0:00:45.7]} 27... Kf7
{[%clk 0:00:52.8]} 28. Kf3 {[%clk 0:00:45.1]} 28... h5 {[%clk 0:00:52.8]} 29.
Ne3 {[%clk 0:00:43.4]} 29... Rcb8 {[%clk 0:00:49.1]} 30. Nc2 {[%clk 0:00:42]}
30... Rb3 {[%clk 0:00:46.4]} 31. Na1 {[%clk 0:00:39.8]} 31... Rb5 {[%clk
0:00:45.4]} 32. Nc2 {[%clk 0:00:39.1]} 32... Rab8 {[%clk 0:00:38.2]} 33. Bc1
{[%clk 0:00:38.9]} 33... Ra8 {[%clk 0:00:34.7]} 34. Ne1 {[%clk 0:00:34.3]} 34...
e5 {[%clk 0:00:31.4]} 35. fxe5 {[%clk 0:00:27.4]} 35... fxe5 {[%clk 0:00:32.3]}
36. dxe5 {[%clk 0:00:26.8]} 36... Bxe5 {[%clk 0:00:32.8]} 37. Nd3 {[%clk
0:00:27.1]} 37... Bd6 {[%clk 0:00:32.7]} 38. Ra1 {[%clk 0:00:21.4]} 38... a3
{[%clk 0:00:29.7]} 39. b4 {[%clk 0:00:19.6]} 39... a2 {[%clk 0:00:28.5]} 40. Bf4
{[%clk 0:00:14.9]} 40... Bxf4 {[%clk 0:00:25.8]} 41. Kxf4 {[%clk 0:00:15.1]}
41... Ra3 {[%clk 0:00:25.1]} 42. Ne5+ {[%clk 0:00:13.2]} 42... Ke6 {[%clk
0:00:24.3]} 43. c4 {[%clk 0:00:12.4]} 43... dxc4 {[%clk 0:00:16.5]} 0-1